[Event "FRA-ch Teams Top 16-Bas 2022"]
[Site "Chartres"]
[Date "2022.06.19"]
[Round "11.26"]
[White "Sohier, Julien"]
[Black "Ternault, Mathieu"]
[Result "0-1"]
[ECO "C02"]
[WhiteElo "2218"]
[BlackElo "2367"]
[Annotator "TA"]
[PlyCount "80"]
[EventDate "2022.06.16"]
[EventType "team-tourn"]
[EventCountry "FRA"]
[SourceTitle "playchess.com"]
[Source "ChessBase"]
[SourceQuality "1"]
[TimeControl "40/5400+30:1800+30"]

{[%evp 11,80,0,15,13,22,0,0,0,0,0,0,0,9,0,21,22,66,87,95,44,87,60,117,123,123,103,128,123,114,125,186,178,172,181,212,198,215,169,166,171,212,198,341,332,331,272,447,436,520,517,452,98,378,240,216,95,634,625,615,600,579,125,112,122,109,117,109,108,119,135,88]} 1. e4 {[%emt 0:00:43][%cal Be2e4,Be4e5][%mdl 32]} e6 {[%emt 0:05:33]} 2. d4 {[%emt 0:00:21]} d5 {[%emt 0:00:04]} 3. e5 {[%emt 0:00:44]} c5 {[%emt 0:00:11]} 4. c3 {[%emt 0:00:04]} Nc6 {[%emt 0:00:26]} 5. Nf3 {[%emt 0:00:05]} Bd7 {[%emt 0:00:21]} 6. Be2 {[%emt 0:00:16]} Rc8 {[%emt 0:00:26]} 7. O-O {[%emt 0:02:29] C02: French: Advance Variation.} h6 {[%emt 0:02:05]} 8. Na3 {[%emt 0:07:16]} cxd4 {[%emt 0:08:12]} 9. cxd4 {[%emt 0:00:07] The position is equal.} Bxa3 {[%emt 0:03:22]} 10. bxa3 {[%emt 0:00:05]} Nge7 {[%emt 0:00:24]} 11. Rb1 {[%emt 0:03:33]} Na5 {[%emt 0:09:18] [#]} 12. Bd3 $146 {[%emt 0:09:56]} ({Predecessor:} 12. Qd2 O-O 13. Bd1 b6 14. Re1 Qe8 15. Qf4 Ba4 16. Bb3 Bxb3 17. axb3 Rc3 18. Bd2 {0-1 (32) Henriquez Villagra,C (2600)-Agdestein,S (2558) Chess.com INT 2020}) 12... Bc6 {[%emt 0:13:23]} 13. Nh4 {[%emt 0:17:25]} g5 {[%emt 0:03:49]} 14. Nf3 {[%emt 0:00:52][%cal Bh4f3,Bf3d2,Bd2b3][%mdl 32]} Qd7 {[%emt 0:06:58]} 15. Re1 {[%emt 0:07:00]} (15. Qe1 $16 Nc4 16. h4) 15... Ng6 {[%emt 0:06:55]} 16. g3 {[%emt 0:03:25]} g4 {[%emt 0:16:05]} ({Black should play} 16... Nc4 $14) 17. Nd2 $16 {[%emt 0:04:05]} h5 {[%emt 0:01:34]} 18. Nb3 {[%emt 0:09:11]} Nc4 {[%emt 0:04:28]} 19. Bg5 {[%emt 0:07:08]} b6 {[%emt 0:01:03] Prevents Nc5.} 20. Bf6 {[%emt 0:00:14] And now Bxg6 would win.} Rg8 {[%emt 0:01:53]} (20... Rh7 $16) 21. Qc1 $1 $18 {[%emt 0:05:40]} Bb5 {[%emt 0:05:07][%cal Oc4a3] [#]} 22. a4 {[%emt 0:08:29]} Bxa4 {[%emt 0:06:14][%cal Oc4e5]} 23. Qh6 {[%emt 0:00:48]} Nf8 {[%emt 0:00:40]} 24. Bh7 {[%emt 0:03:16]} Nxh7 {[%emt 0:01:30]} 25. Qxh7 {[%emt 0:00:03][%cal Rh7g8]} Kf8 {[%emt 0:00:02]} 26. Qxh5 {[%emt 0:01:48]} Qc6 {[%emt 0:02:53]} (26... Ke8 {was worth a try.} 27. Qh7 Kf8) 27. f3 {[%emt 0:02:58]} (27. Qh7 Qd7 28. Rbc1 Qb7 $18) 27... Ke8 {[%emt 0:00:27]} 28. Rbc1 {[%emt 0:00:38]} (28. fxg4 Bxb3 29. Qh7 (29. axb3 Nd2 $14) 29... Rxg4 30. axb3 Nd2 $14) 28... Qb7 $2 {[%emt 0:00:34]} (28... gxf3 {is a better defense.} 29. Qh7 (29. Qxf3 Qb5 $16) 29... Rf8) 29. fxg4 {[%emt 0:00:56]} Bxb3 {[%emt 0:00:21]} 30. axb3 {[%emt 0:01:06]} Nd2 {[%emt 0:00:21]} 31. Kh1 $2 {[%emt 0:01:48]} (31. Qh7 $18 Rg6 32. Red1 (32. Qh8+ Kd7 $18)) 31... Ne4 $2 {[%emt 0:00:46][%mdl 8192]} (31... Nxb3 $16 {was necessary.} 32. Qh7 Rxg4) 32. Qh7 {[%emt 0:00:32]} Rf8 {[%emt 0:00:30]} 33. Bg7 {[%emt 0:00:39]} (33. Rf1 $18 {has better winning chances.}) 33... Qa6 $2 {[%emt 0:00:27][%mdl 8192]} 34. Rxc8+ {[%emt 0:00:53]} Qxc8 {[%emt 0:00:09]} 35. Bxf8 {[%emt 0:00:07]} Qc2 {[%emt 0:00:01] [#]} 36. Qh6 $2 {[%emt 0:01:13]} ({Stronger than} 36. Qg8 Qf2 37. Bd6+ Kd7 $11) (36. Qh4 $1 $18 {[%csl Gf8][%cal Rh4e7] and White stays clearly on top.} Kxf8 37. Rf1) 36... Nf2+ $16 {[%emt 0:00:29]} 37. Kg1 {[%emt 0:01:37][%cal Bh1g1,Bg1f1,Bf1e2][%mdl 32]} Nxg4 {[%emt 0:00:02] aiming for ...Qf2+.} 38. Qf4 {[%emt 0:02:00] Against Qf2+} Qxh2+ {[%emt 0:02:27]} 39. Kf1 Qh1+ {[%emt 0:00:30]} 40. Ke2 {[%emt 0:01:00]} Qg2+ {[%emt 0:00:30][%mdl 32768] Weighted Error Value: White=0.61/Black=0.56. Loss on time!?} 0-1

[Event "FRA-ch Teams Top 16-Bas 2022"]
[Site "Chartres"]
[Date "2022.06.19"]
[Round "11.27"]
[White "Kirk, Ezra"]
[Black "Baillon, Olivier"]
[Result "0-1"]
[ECO "B52"]
[WhiteElo "2446"]
[BlackElo "2197"]
[Annotator "TA"]
[PlyCount "78"]
[EventDate "2022.06.16"]
[EventType "team-tourn"]
[EventCountry "FRA"]
[SourceTitle "playchess.com"]
[Source "ChessBase"]
[SourceQuality "1"]
[TimeControl "40/5400+30:1800+30"]

{[%evp 18,78,15,21,15,23,29,29,29,6,6,6,6,0,0,0,0,-94,-84,-86,-85,-144,-147,-135,-127,-137,-120,-168,-129,-227,-198,-196,-203,-216,-202,-239,-241,-236,-219,-215,-168,-237,-243,-228,-239,-415,-441,-418,-306,-302,-324,-1363,-1328,-1429,-1366,-1657,-1610,-1821,-2071,-1815,-1597,-1213,-1010]} 1. e4 {[%emt 0:06:26]} c5 {[%emt 0:00:06]} 2. Nf3 {[%emt 0:00:14]} d6 {[%emt 0:00:05]} 3. Bb5+ {[%emt 0:00:04]} Bd7 {[%emt 0:00:12]} 4. c4 {[%emt 0:00:37]} Nf6 {[%emt 0:02:11]} 5. Nc3 {[%emt 0:01:08]} g6 {[%emt 0:00:14]} 6. d4 {[%emt 0:00:25]} cxd4 {[%emt 0:00:06]} 7. Nxd4 {[%emt 0:00:06]} Bg7 {[%emt 0:00:07]} 8. Be3 {[%emt 0:01:31]} O-O {[%emt 0:00:16]} 9. Bxd7 {[%emt 0:00:31]} Nbxd7 {[%emt 0:00:07]} 10. O-O {[%emt 0:01:05]} Qa5 {[%emt 0:02:39] B52: Sicilian: Moscow Variation with 3...Bd7.} 11. Rc1 {[%emt 0:12:08]} Rfc8 {[%emt 0:00:37]} 12. b3 {[%emt 0:03:37]} a6 {[%emt 0:00:35][%cal Ob7b5] White has an edge.} 13. a4 {[%emt 0:01:23] [#]} e6 $146 {[%emt 0:01:46]} ({Predecessor:} 13... Ne5 14. f3 Nc6 15. Nde2 Nd7 16. Nd5 e6 17. Ndc3 Nc5 18. Na2 b5 19. cxb5 axb5 20. Qxd6 {0-1 (33) Fuksik,J (2255)-Zabystrzan,P (2300) Czech Republic 1997}) 14. Nde2 {[%emt 0:04:31]} Nc5 {[%emt 0:09:19]} 15. Qc2 {[%emt 0:05:27]} Qb4 {[%emt 0:24:12]} 16. Rb1 {[%emt 0:04:48]} b5 {[%emt 0:05:36]} 17. Na2 {[%emt 0:23:10]} (17. axb5 $11 axb5 18. Nxb5 Ncxe4 19. Rfc1) 17... Qa5 $17 {[%emt 0:00:24] Strongly threatening ...bxc4. White is on the road to losing.} 18. Bxc5 {[%emt 0:07:21]} dxc5 {[%emt 0:00:20]} (18... Rxc5 $2 19. b4 Rxc4 20. Qxc4 (20. bxa5 $2 {perishes.} Rxc2 21. Nac3 bxa4 $19) 20... bxc4 21. bxa5 $18) 19. Nac3 {[%emt 0:00:53] [#]} ({White should play} 19. h3) 19... bxc4 $1 {[%emt 0:00:49]} 20. bxc4 {[%emt 0:00:07]} Ng4 {[%emt 0:01:34]} 21. h3 {[%emt 0:07:57]} Ne5 {[%emt 0:00:09]} 22. Na2 {[%emt 0:00:24]} (22. Qa2 $17) 22... Nc6 {[%emt 0:05:19]} 23. Nec1 {[%emt 0:02:13]} (23. f4 $17) 23... Nb4 {[%emt 0:02:39]} 24. Nxb4 {[%emt 0:01:06]} cxb4 {[%emt 0:00:04]} 25. Nd3 {[%emt 0:00:09]} Rab8 {[%emt 0:02:12]} 26. Qb3 {[%emt 0:01:07]} Qc7 {[%emt 0:03:11]} 27. c5 {[%emt 0:02:14]} a5 {[%emt 0:01:49]} 28. Rbc1 {[%emt 0:01:42]} Qc6 {[%emt 0:00:57]} 29. f3 {[%emt 0:01:57]} (29. Rc4 $142) 29... Bc3 {[%emt 0:01:24]} 30. Rxc3 {[%emt 0:03:10]} bxc3 {[%emt 0:00:05]} 31. Qxc3 {[%emt 0:00:05]} (31. Qc4) 31... Qxa4 $19 {[%emt 0:00:32] [#] Threatens to win with ...Rb3.} 32. Qf6 {[%emt 0:02:00]} Rb7 {[%emt 0:07:41]} 33. Rc1 {[%emt 0:00:40]} Qa3 {[%emt 0:02:23]} 34. Rc3 {[%emt 0:00:55]} (34. Qd4) 34... Qa1+ {[%emt 0:04:21] Black is clearly winning.} 35. Kh2 {[%emt 0:00:26]} Rd7 {[%emt 0:00:32] aiming for ...Rxd3.} ({Less strong is} 35... Rb3 36. Ne5 Rb7 37. Ng4 $16) 36. Ne5 {[%emt 0:05:01]} Qxc3 {[%emt 0:00:23]} 37. Nxd7 {[%emt 0:00:05]} Qxf6 {[%emt 0:00:12]} 38. Nxf6+ {[%emt 0:00:03]} Kf8 {[%emt 0:01:22]} 39. Nd7+ {[%emt 0:00:10]} Ke7 {[%emt 0:00:08] Weighted Error Value: White=0.63/Black=0.08 (flawless)} 0-1

[Event "FRA-ch Teams Top 16-Bas 2022"]
[Site "Chartres"]
[Date "2022.06.19"]
[Round "11.28"]
[White "Solakian-Van Eyll, Jerome"]
[Black "Fantinel, Thibault"]
[Result "0-1"]
[ECO "A45"]
[WhiteElo "2248"]
[BlackElo "2388"]
[Annotator "TA"]
[PlyCount "70"]
[EventDate "2022.06.16"]
[EventType "team-tourn"]
[EventCountry "FRA"]
[SourceTitle "playchess.com"]
[Source "ChessBase"]
[SourceQuality "1"]
[TimeControl "40/5400+30:1800+30"]

{[%evp 9,70,0,0,0,-7,-16,-8,-15,0,0,0,0,0,1,0,0,53,44,51,-25,-32,-36,-31,-60,-61,-56,-54,-74,-75,-78,-90,-73,-73,-83,-99,-91,-98,-94,-94,-94,-88,-122,-106,-227,-225,-214,-217,-300,-318,-301,-284,-458,-475,-466,-455,-446,-408,-387,-383,-381,-380,-781,-680]} 1. d4 {[%emt 0:04:01]} Nf6 {[%emt 0:00:16]} 2. Bf4 {[%emt 0:00:15]} g6 {[%emt 0:00:37]} 3. Nc3 {[%emt 0:02:51]} d5 {[%emt 0:00:14]} 4. e3 {[%emt 0:00:46]} Bg7 {[%emt 0:00:14]} 5. Nb5 {[%emt 0:02:00]} Na6 {[%emt 0:00:29]} 6. Nf3 {[%emt 0:03:21] A45: Trompowsky Attack.} O-O {[%emt 0:00:16] The main line 6...0-0 scores better than 6...c6.} 7. h3 {[%emt 0:00:08]} Ne4 {[%emt 0:00:32]} 8. Nd2 {[%emt 0:02:58] The position is equal.} c6 {[%emt 0:00:55]} 9. Nxe4 {[%emt 0:01:53]} dxe4 {[%emt 0:00:04]} 10. Nc3 {[%emt 0:01:11]} c5 {[%emt 0:00:05][%cal Rc5d4] [#]} 11. Nxe4 $146 {[%emt 0:11:32]} ({Predecessor:} 11. d5 Qb6 12. Rb1 Rd8 13. Nxe4 Qa5+ 14. Nd2 Rxd5 15. e4 Rd8 16. Bc4 e6 17. Bg5 {0-1 (37) Almeida Quintana,O (2539)-Espinosa Veloz,E (2486) Villa Clara 2020}) 11... cxd4 {[%emt 0:00:20]} 12. exd4 {[%emt 0:00:05]} Nb4 {[%emt 0:01:55]} (12... Qd5 $11 13. Ng3 Qxd4 14. Qxd4 Bxd4) 13. c3 $14 {[%emt 0:15:33]} Bf5 {[%emt 0:00:14]} 14. Qe2 {[%emt 0:08:43]} (14. cxb4 Bxe4 15. f3 Bf5 $17) (14. f3 $14 Nd5 15. Bg5) 14... Nd5 $11 {[%emt 0:00:32]} 15. Bh2 {[%emt 0:05:47]} Qa5 {[%emt 0:02:09]} 16. Nd2 {[%emt 0:05:51] [#]} Nxc3 $1 {[%emt 0:20:16]} 17. bxc3 {[%emt 0:00:07]} Rac8 {[%emt 0:00:14] Strongly threatening ...Rfd8.} (17... Qxc3 $5 18. Rd1 Rac8 $11) 18. Nb3 {[%emt 0:12:06]} (18. Qxe7 $2 Qxc3 19. Rd1 Rfe8 20. Qxe8+ Rxe8+ 21. Be2 Bd3 $19) 18... Qxc3+ {[%emt 0:00:17]} 19. Qd2 {[%emt 0:00:03] [#] aiming for Qxc3.} Bxd4 {[%emt 0:00:53][%mdl 64] Pin} 20. Rc1 {[%emt 0:09:55] [#]} Rfd8 $1 {[%emt 0:00:24][%cal Od4f2] Hoping for ...Bxf2+!} 21. Qxc3 {[%emt 0:06:03]} ({Don't play} 21. Rxc3 Bxc3 22. Qxc3 Rxc3 $17) (21. Be2 Qxd2+) 21... Bxc3+ {[%emt 0:04:59]} 22. Ke2 {[%emt 0:00:08]} a5 {[%emt 0:07:32][%cal Ba7a5,Ba5a4][%mdl 1056] Threatens to win with ...a4. Black has strong compensation. 0x0.001763584284dp-1022s more active pieces.} 23. Bf4 {[%emt 0:01:40]} ({Avoid the trap} 23. Kf3 $2 a4 24. Bf4 (24. Na1 $2 e5 $19) 24... axb3 25. axb3 e5 $19) 23... a4 $36 {[%emt 0:13:30][%mdl 2048] White is under strong pressure.} 24. Nd2 {[%emt 0:00:03]} e5 {[%emt 0:01:09]} 25. Be3 {[%emt 0:00:49]} Be6 {[%emt 0:04:15]} 26. Nb1 {[%emt 0:02:48] [#] This costs White the game.} (26. Bg5 $17 {keeps fighting.} Bb4 27. Rxc8 Rxc8 28. g4) 26... Bb2 $1 $19 {[%emt 0:03:39]} 27. Rxc8 {[%emt 0:00:13]} Rxc8 {[%emt 0:00:04]} 28. a3 {[%emt 0:02:35]} Ba2 {[%emt 0:03:27]} 29. Nd2 {[%emt 0:00:03]} Bxa3 {[%emt 0:00:15] ...Bb2 is the strong threat.} 30. Kf3 $2 {[%emt 0:00:04]} (30. g4 {was worth a try.} Bd5 31. Rg1) 30... Bb2 {[%emt 0:00:44]} 31. Bd3 {[%emt 0:01:41]} a3 {[%emt 0:00:35]} 32. Ke2 {[%emt 0:00:34]} Bd5 {[%emt 0:01:25] White must now prevent ...a2.} 33. Ne4 {[%emt 0:00:30]} Bxe4 {[%emt 0:01:30]} 34. Bxe4 {[%emt 0:00:01]} a2 {[%emt 0:00:09] Inhibits Bb1.} 35. Bxb7 $2 {[%emt 0:00:18] [#]} (35. Bd5 a1=Q 36. Rxa1 Bxa1 37. Bxb7) 35... Rc1 $3 {[%emt 0:01:16][%mdl 576] Promotion.  Weighted Error Value: White=0.40/Black=0.05 (flawless)} 0-1

[Event "FRA-ch Teams Top 16-Bas 2022"]
[Site "Chartres"]
[Date "2022.06.19"]
[Round "11.29"]
[White "Domenech, Vianney"]
[Black "Iglesias, Yosha"]
[Result "1/2-1/2"]
[ECO "D02"]
[WhiteElo "2266"]
[BlackElo "2202"]
[Annotator "NA RC"]
[PlyCount "28"]
[EventDate "2022.06.16"]
[EventType "team-tourn"]
[EventCountry "FRA"]
[SourceTitle "playchess.com"]
[Source "ChessBase"]
[SourceQuality "1"]
[TimeControl "40/5400+30:1800+30"]

1. d4 {[%emt 0:06:18]} d5 {[%emt 0:00:08]} 2. Nf3 {[%emt 0:00:52]} e6 {[%emt 0:00:50]} 3. Bf4 {[%emt 0:02:38]} Nf6 {[%emt 0:00:40]} 4. Nbd2 {[%emt 0:00:03]} c5 {[%emt 0:00:49]} 5. e3 {[%emt 0:00:20]} Bd6 {[%emt 0:00:26]} 6. Bg3 {[%emt 0:01:19]} O-O {[%emt 0:01:14]} 7. c3 {[%emt 0:02:29]} Qc7 {[%emt 0:03:43]} 8. Bd3 {[%emt 0:08:06]} Nbd7 {[%emt 0:01:58]} 9. e4 {[%emt 0:02:54]} e5 {[%emt 0:04:34]} 10. O-O {[%emt 0:02:49]} exd4 {[%emt 0:01:54]} 11. cxd4 {[%emt 0:03:07]} Bxg3 {[%emt 0:00:49]} 12. hxg3 {[%emt 0:00:14]} dxe4 {[%emt 0:00:06]} 13. Nxe4 {[%emt 0:00:58]} Nxe4 {[%emt 0:00:05]} 14. Bxe4 {[%emt 0:00:03]} Nf6 {[%emt 0:00:08]} 1/2-1/2

[Event "FRA-ch Teams Top 16-Bas 2022"]
[Site "Chartres"]
[Date "2022.06.19"]
[Round "11.30"]
[White "Lemonnier, Remi"]
[Black "Boukhris-Ferre, Yacine"]
[Result "0-1"]
[ECO "C54"]
[WhiteElo "2033"]
[BlackElo "2183"]
[Annotator "TA"]
[PlyCount "119"]
[EventDate "2022.06.16"]
[EventType "team-tourn"]
[EventCountry "FRA"]
[SourceTitle "playchess.com"]
[Source "ChessBase"]
[SourceQuality "1"]
[TimeControl "40/5400+30:1800+30"]

{[%evp 14,119,23,16,15,12,10,-19,-29,-19,-17,-25,-24,-23,-23,-37,-35,-90,-91,-165,-183,-174,-152,-184,-196,-154,-113,-215,-235,-206,-165,-169,-147,-143,-143,-151,-100,-89,-98,-86,-19,-76,-62,-147,-141,-136,-143,-133,-50,-40,-37,-52,-43,-45,-18,-20,0,0,0,0,6,8,256,0,-4,-77,-84,-84,-84,-86,-86,-86,-86,-135,-133,-136,-129,-189,-183,-187,-67,-87,-73,-406,-400,-379,-387,-379,-320,-478,-462,-766,-497,-490,-485,-731,-689,-29976,-29978,-29978,-29979,-29980,-29981,-29981,-29976,-29976,-29971,-29946]} 1. e4 {[%emt 0:00:02]} e5 {[%emt 0:00:35]} 2. Nf3 {[%emt 0:00:17]} Nc6 {[%emt 0:00:05]} 3. Bc4 {[%emt 0:00:05]} Nf6 {[%emt 0:00:05]} 4. d3 {[%emt 0:00:15]} Bc5 {[%emt 0:00:04]} 5. c3 {[%emt 0:00:06]} a6 {[%emt 0:00:14]} 6. Bb3 {[%emt 0:00:08]} Ba7 {[%emt 0:00:28]} 7. h3 {[%emt 0:00:15]} d6 {[%emt 0:00:05]} 8. Nbd2 {[%emt 0:00:36]} h6 {[%emt 0:00:48] C54: Giuoco Piano: 4 c3 Nf6, main lines with 5 d4 and 5 d3.} 9. Nf1 {[%emt 0:00:31]} (9. O-O {seems wilder.} O-O 10. Re1 Re8 11. Nf1) 9... Be6 {[%emt 0:02:55]} 10. Bc2 {[%emt 0:02:25]} d5 {[%emt 0:03:57] The position is equal.} 11. Qe2 {[%emt 0:00:25]} Qd6 {[%emt 0:10:27]} 12. Ng3 {[%emt 0:10:22]} O-O-O {[%emt 0:02:05]} 13. O-O {[%emt 0:11:32]} g5 {[%emt 0:05:03][%cal Bg7g5,Bg5f4][%mdl 32]} 14. Nh2 {[%emt 0:06:40] [#] Against g4} Ne7 $146 {[%emt 0:17:56][%cal Bc6e7,Be7g6,Bg6f4][%mdl 32]} ({Predecessor:} 14... d4 15. Qf3 Nd7 16. Nf5 Bxf5 17. Qxf5 Ne7 18. Qf3 Rdg8 19. Bb3 Rg7 20. cxd4 Bxd4 {0-1 (34) Mortazavi,A (2333)-Costachi,M (2471) Chess.com INT 2020}) 15. b4 {[%emt 0:10:20]} (15. Be3 $15 Bxe3 16. fxe3) 15... Ng6 $17 {[%emt 0:01:27] Black is more active.} 16. Rb1 {[%emt 0:19:18]} (16. Bb3 $17 {might work better.}) 16... Nf4 $19 {[%emt 0:02:18]} 17. Bxf4 {[%emt 0:00:41]} gxf4 {[%emt 0:01:17]} 18. Nh5 {[%emt 0:07:05]} Nxh5 {[%emt 0:03:37]} 19. Qxh5 {[%emt 0:00:06]} Rdg8 {[%emt 0:00:52]} 20. Kh1 {[%emt 0:07:42]} (20. Nf3 $17) 20... Rg5 $1 {[%emt 0:00:27]} 21. Qf3 {[%emt 0:00:51]} h5 {[%emt 0:02:06][%cal Oe6g4]} 22. d4 {[%emt 0:21:48] [#]} Bg4 $1 {[%emt 0:44:39][%mdl 512]} 23. Qd3 {[%emt 0:00:30]} (23. Nxg4 $2 hxg4 24. Qe2 gxh3 $19) 23... dxe4 {[%emt 0:00:00]} 24. Qxe4 {[%emt 0:00:00]} Bf5 {[%emt 0:00:00]} ({Better is} 24... exd4 25. cxd4 (25. hxg4 $2 hxg4 26. Rfe1 f3 $19) 25... Bf5) 25. Qe2 $17 {[%emt 0:00:00]} Bxc2 {[%emt 0:00:00]} 26. Qxc2 {[%emt 0:00:00]} Rhg8 {[%emt 0:00:00]} (26... exd4 $17 {And now ...d3 would win.} 27. Nf3 d3) 27. Rg1 {[%emt 0:00:00]} (27. Nf3 $11 Rxg2 28. Qf5+ Kb8 29. Rg1 Rxg1+ 30. Rxg1 Rxg1+ 31. Kxg1 exd4 32. Qxf7) 27... Qe6 {[%emt 0:00:00]} 28. Qe4 {[%emt 0:00:00]} (28. h4 $15 Qg6 29. Qxg6 R5xg6 30. Nf3) 28... exd4 {[%emt 0:00:00]} (28... Qxa2 29. Nf3 R5g7 30. Nxe5 Qxf2 31. Rbe1 $14 (31. Qd5 Qc2 $11)) 29. Qxe6+ {[%emt 0:00:00]} fxe6 {[%emt 0:00:00]} 30. Nf3 {[%emt 0:00:00] [#]} Rd5 {[%emt 0:00:00]} (30... dxc3 $1 $17 31. Nxg5 Rxg5) 31. c4 $15 {[%emt 0:00:00]} Rf5 {[%emt 0:00:00]} 32. c5 {[%emt 0:00:00]} Rd5 {[%emt 0:00:00]} 33. Rge1 {[%emt 0:00:20]} b6 {[%emt 0:00:00]} 34. Rxe6 {[%emt 0:01:38]} bxc5 {[%emt 0:00:00] Strongly threatening ...c4.} 35. Rxa6 {[%emt 0:02:06]} Kb7 {[%emt 0:00:00]} 36. Ra5 {[%emt 0:00:24]} Bb6 $36 {[%emt 0:03:03][%mdl 2048] Black has some pressure.} 37. bxc5 {[%emt 0:00:42]} Kc6 {[%emt 0:00:09] [#]} (37... d3 $11) 38. cxb6 $1 {[%emt 0:01:43]} Rxa5 $18 {[%emt 0:00:03][%mdl 4096] Endgame KRR-KRN} 39. b7 {[%emt 0:00:10]} (39. Nxd4+ $11 Kb7 40. bxc7+ Kxc7 41. Ne6+ Kc6 42. Nxf4) 39... Rb8 $17 {[%emt 0:03:53] aiming for ...Kd5.} 40. Nxd4+ {[%emt 0:00:40]} Kd5 {[%emt 0:00:28]} 41. Ne2 {[%emt 0:04:14]} f3 {[%emt 0:04:58]} 42. gxf3 {[%emt 0:04:10]} c5 {[%emt 0:01:16]} 43. Rb6 {[%emt 0:06:48] [#]} ({White should try} 43. Nc3+ Kc6 44. Rg1) 43... Kc4 $1 {[%emt 0:05:42]} 44. Ng3 {[%emt 0:06:15]} Rb5 {[%emt 0:02:28]} ({But not} 44... Ra7 $6 45. Ne4 $11) 45. Rh6 {[%emt 0:03:40]} (45. Rxb5 $2 Kxb5 46. Kg2 c4 $19) (45. Re6 $17) 45... R8xb7 $19 {[%emt 0:02:04]} ({Not} 45... R5xb7 46. Rxh5 Ra8 47. Ne4 $17) 46. Rxh5 {[%emt 0:00:20] [#]} Kd4 {[%emt 0:01:58]} (46... Kb4 $1 $19 {Threatens to win with ...c4.} 47. Rh4+ c4) 47. Nf5+ $15 {[%emt 0:04:23]} Kd3 {[%emt 0:00:15][%mdl 1024] Hoping for ...c4. Black has strong compensation.} 48. Rh4 {[%emt 0:04:21][%mdl 8192]} (48. Nd6 $17 {was the crucial defense.} Rb1+ 49. Kh2) 48... c4 $19 {[%emt 0:04:57][%cal Bc5c4,Bc4c3][%mdl 32]} 49. Rd4+ {[%emt 0:00:09]} Kc3 {[%emt 0:00:13]} 50. Rf4 {[%emt 0:00:10]} Rd7 {[%emt 0:03:38] Prevents Nd6.} ({Stronger than} 50... Rf7 51. Rxc4+ Kxc4 52. Nd6+ Kd3 53. Nxf7 $11) 51. Kg2 {[%emt 0:01:13]} (51. Ng3 $142) 51... Kd3 {[%emt 0:00:43] White must now prevent ...c3.} 52. a4 {[%emt 0:00:28]} (52. Ne3 $142 Rc5 53. Kg3) 52... Rc5 {[%emt 0:00:27]} 53. Ne3 {[%emt 0:00:33]} c3 {[%emt 0:00:17] ...Re7 is the strong threat.} 54. h4 {[%emt 0:00:31]} (54. Re4 $142 Rg7+ 55. Kf1) 54... Re7 {[%emt 0:01:10] ( -> ...Rxe3)} 55. Re4 {[%emt 0:00:31]} Rxe4 {[%emt 0:01:21] Black mates.} 56. fxe4 {[%emt 0:00:04]} Kxe4 {[%emt 0:00:06]} 57. Nc2 {[%emt 0:00:55]} Kd3 {[%emt 0:01:04]} 58. Ne1+ {[%emt 0:00:28]} Ke2 {[%emt 0:00:24]} 59. Nc2 {[%emt 0:00:32]} Kd2 {[%emt 0:00:10]} 60. Ne3 {[%emt 0:01:02] Weighted Error Value: White=0.53/Black=0.21 (precise)} 0-1